bitfinex/quotes_SOLUSD_20230105
["timestamp","ask_amount","ask_price","bid_price","bid_amount"]
[1672878906650,41.7811836,13.323,13.314,113.3403]
[1672878907399,21.7811836,13.323,13.314,113.3403]
[1672878910371,56.33,13.322,13.314,113.3403]
[1672878910674,78.1111836,13.322,13.314,113.3403]
[1672878910887,21.7811836,13.322,13.314,113.3403]
[1672878912972,21.7811836,13.322,13.313,108.8769]
[1672878915286,56.33,13.323,13.313,108.8769]
[1672878915483,41.7811836,13.324,13.313,108.8769]
[1672878915691,56.33,13.323,13.313,108.8769]
[1672878918306,21.7811836,13.322,13.313,108.8769]
[1672878918743,56.33,13.323,13.313,108.8769]
[1672878919278,56.33,13.323,13.314,112.1035]
[1672878920222,20.0,13.324,13.314,112.1035]
[1672878920428,56.33,13.323,13.314,112.1035]
[1672878923568,20.0,13.324,13.314,112.1035]
[1672878923781,56.33,13.323,13.314,112.1035]
[1672878927978,56.32,13.325,13.314,112.1035]
[1672878928189,20.0,13.323,13.314,112.1035]
[1672878928399,56.33,13.322,13.314,112.1035]
[1672878928841,56.33,13.323,13.314,112.1035]
[1672878929046,21.7811836,13.321,13.314,112.1035]
[1672878929253,21.7811836,13.321,13.308,188.18761636]
[1672878929254,21.7811836,13.321,13.308,84.1732601]
[1672878929453,56.34,13.32,13.308,84.1732601]
[1672878929657,40.0,13.319,13.308,84.1732601]
[1672878930002,56.35,13.318,13.308,84.1732601]
[1672878930189,40.0,13.317,13.308,84.1732601]
[1672878930519,20.0,13.315,13.308,84.1732601]
[1672878930726,20.0,13.314,13.308,84.1732601]
[1672878931255,58.49985592,13.319,13.308,84.1732601]
[1672878931256,20.0,13.334,13.309,20.0]
[1672878931468,20.0,13.325,13.309,20.0]
[1672878931691,41.7811836,13.326,13.309,20.0]
[1672878931871,20.0,13.324,13.309,20.0]
[1672878932080,56.33,13.323,13.31,109.753]
[1672878932392,56.33,13.323,13.311,20.0]
[1672878932829,56.33,13.323,13.31,109.753]
[1672878935353,56.32,13.325,13.31,109.753]
[1672878935576,20.0,13.323,13.31,109.753]
[1672878935792,76.33,13.323,13.31,109.753]
[1672878937347,56.33,13.323,13.31,109.753]
[1672878937764,20.0,13.324,13.31,109.753]
[1672878938185,56.3,13.329,13.311,20.0]
[1672878938402,56.3,13.33,13.313,20.0]
[1672878938724,20.0,13.334,13.313,20.0]
[1672878938725,56.29,13.333,13.314,193.7676]
[1672878938950,56.29,13.333,13.315,20.0]
[1672878939554,56.28,13.334,13.316,111.8082]
[1672878939770,56.28,13.334,13.317,20.0]
[1672878941339,20.0,13.334,13.317,20.0]
[1672878941559,56.29,13.333,13.317,20.0]
[1672878941769,20.0,13.334,13.317,20.0]
[1672878941979,56.29,13.333,13.317,20.0]
[1672878942187,56.27,13.337,13.319,20.0]
[1672878942401,20.0,13.336,13.32,62.74]
[1672878942614,56.28,13.335,13.322,20.0]
[1672878942821,56.28,13.335,13.324,20.0]
[1672878943245,20.0,13.334,13.324,20.0]
[1672878943779,20.0,13.334,13.324,35.6824165]
[1672878944185,20.0,13.34,13.324,35.6824165]
[1672878944392,56.26,13.339,13.324,35.6824165]
[1672878944605,20.0,13.338,13.324,35.6824165]
[1672878944813,56.27,13.337,13.324,35.6824165]
[1672878945029,20.0,13.336,13.324,35.6824165]
[1672878945774,76.25,13.342,13.324,35.6824165]
[1672878947675,20.0,13.341,13.324,20.0]
[1672878947889,76.26,13.34,13.323,111.1733]
[1672878948103,20.0,13.339,13.323,111.1733]
[1672878948318,76.27,13.338,13.323,111.1733]
[1672878948532,20.0,13.337,13.323,111.1733]
[1672878948843,76.27,13.336,13.323,111.1733]
[1672878949036,21.7811836,13.336,13.324,20.0]
[1672878949250,56.25,13.342,13.326,20.0]
[1672878949470,21.7811836,13.34,13.326,20.0]
[1672878950306,56.26,13.339,13.324,56.32]
[1672878950522,56.26,13.339,13.323,111.1733]
[1672878950523,40.0,13.338,13.323,111.1733]
[1672878950721,56.27,13.337,13.323,111.1733]
[1672878950930,40.0,13.336,13.323,111.1733]
[1672878951170,20.0,13.334,13.323,111.1733]
[1672878951372,56.29,13.333,13.323,111.1733]
[1672878951571,78.0711836,13.333,13.323,111.1733]
[1672878951774,21.7811836,13.332,13.323,111.1733]
[1672878952719,56.3,13.331,13.323,111.1733]
[1672878953060,21.7811836,13.33,13.323,111.1733]
[1672878954606,21.7811836,13.33,13.316,56.36]
[1672878954825,21.7811836,13.33,13.31,31.99]
[1672878954826,56.3,13.329,13.318,113.1459]
[1672878955351,78.0811836,13.329,13.318,113.1459]
[1672878955572,21.7811836,13.329,13.318,113.1459]
[1672878956182,21.7811836,13.329,13.319,20.0]
[1672878957563,56.28,13.335,13.319,20.0]
[1672878957766,21.7811836,13.333,13.319,20.0]
[1672878958084,78.0711836,13.333,13.319,20.0]
[1672878958301,21.7811836,13.333,13.322,20.0]
[1672878958496,21.7811836,13.332,13.322,20.0]
[1672878959241,56.28,13.335,13.322,20.0]
[1672878959444,20.0,13.334,13.322,20.0]
[1672878959763,56.29,13.333,13.322,20.0]
[1672878962715,78.0711836,13.333,13.322,20.0]
[1672878963026,78.0711836,13.333,13.319,20.0]
[1672878963871,78.0711836,13.333,13.322,20.0]
[1672878967423,78.0711836,13.333,13.319,20.0]
[1672878968478,78.0711836,13.333,13.322,20.0]
[1672878969769,78.0711836,13.333,13.319,20.0]
[1672878970920,78.0711836,13.333,13.322,20.0]
[1672878973653,78.0711836,13.333,13.319,20.0]
[1672878975754,20.0,13.332,13.314,117.3976]
[1672878975964,20.0,13.33,13.314,117.3976]
[1672878976174,76.3,13.329,13.314,117.3976]
[1672878976386,20.0,13.328,13.314,117.3976]
[1672878976585,76.31,13.327,13.314,117.3976]
[1672878976797,76.31,13.327,13.315,20.0]
[1672878977015,98.0911836,13.327,13.315,20.0]
[1672878977238,76.31,13.327,13.315,20.0]
[1672878981020,98.0911836,13.327,13.314,117.3976]
[1672878982275,76.31,13.327,13.315,20.0]
[1672878988988,21.7811836,13.326,13.315,20.0]
[1672878989310,76.32,13.325,13.315,20.0]
[1672878990779,21.7811836,13.326,13.315,20.0]
[1672878990985,56.3,13.329,13.315,20.0]
[1672878991195,56.28,13.334,13.315,36.2995562]
[1672878991633,56.28,13.334,13.316,76.36]
[1672878991950,56.28,13.334,13.317,20.0]
[1672878992161,56.28,13.334,13.318,56.35]
[1672878992476,78.0611836,13.334,13.32,20.0]
[1672878992666,20.0,13.333,13.322,20.0]
[1672878992881,56.29,13.332,13.322,20.0]
[1672878995206,56.29,13.332,13.321,114.8086]
[1672878996031,56.29,13.332,13.322,20.0]
[1672878996669,78.0711836,13.332,13.322,20.0]
[1672878996994,78.0711836,13.332,13.321,114.8086]
[1672879001204,21.7811836,13.332,13.321,114.8086]
[1672879001393,78.0711836,13.332,13.321,114.8086]
[1672879002878,21.7811836,13.332,13.321,114.8086]
[1672879003095,21.7811836,13.332,13.322,20.0]
[1672879003314,20.0,13.333,13.322,20.0]
[1672879003630,20.0,13.336,13.322,20.0]
[1672879003840,56.28,13.335,13.322,20.0]
[1672879004049,20.0,13.334,13.322,20.0]
[1672879004249,56.29,13.333,13.322,20.0]
[1672879004797,20.0,13.334,13.322,20.0]
[1672879004983,20.0,13.335,13.322,20.0]
[1672879005189,20.0,13.336,13.322,20.0]
[1672879006052,20.0,13.336,13.321,114.8086]
[1672879006248,56.28,13.335,13.321,114.8086]
[1672879006458,20.0,13.334,13.322,20.0]
[1672879007080,20.0,13.336,13.322,20.0]
[1672879007295,56.28,13.335,13.322,20.0]
[1672879007517,20.0,13.334,13.322,20.0]
[1672879008165,20.0,13.336,13.322,20.0]
[1672879008470,56.28,13.335,13.322,20.0]
[1672879008655,20.0,13.334,13.322,20.0]
[1672879009076,21.7811836,13.334,13.322,20.0]
[1672879009306,41.7811836,13.333,13.322,20.0]
[1672879010255,56.25,13.341,13.324,20.0]
[1672879010446,56.22,13.348,13.33,12.73]
[1672879010654,20.0,13.347,13.331,119.4026]
[1672879010885,56.23,13.346,13.331,119.4026]
[1672879011195,40.0,13.345,13.331,119.4026]
[1672879011519,56.24,13.344,13.331,119.4026]
[1672879011830,20.0,13.342,13.322,56.33]
[1672879012015,20.0,13.342,13.323,20.0]
[1672879012016,56.25,13.341,13.323,20.0]
[1672879012231,20.0,13.34,13.323,20.0]
[1672879012440,76.26,13.339,13.323,35.82005462]
[1672879015496,76.26,13.339,13.324,20.0]
[1672879016536,37.95224937,13.355,13.324,20.0]
[1672879016537,37.95224937,13.356,13.341,53.77603104]
[1672879016749,56.22,13.348,13.341,53.77603104]
[1672879017084,56.19,13.357,13.332,20.0]
[1672879017279,20.0,13.346,13.331,114.8517]
[1672879017484,56.24,13.345,13.331,114.8517]
[1672879017695,193.81800854,13.345,13.331,114.8517]
[1672879017911,127.54627854,13.344,13.331,114.8517]
[1672879018231,20.0,13.343,13.331,114.8517]
[1672879018640,127.54627854,13.342,13.331,114.8517]
[1672879019292,183.79627854,13.342,13.331,114.8517]
[1672879019819,137.17627854,13.341,13.331,114.8517]
[1672879022217,56.25,13.342,13.332,20.0]
[1672879022952,168.85183821,13.342,13.332,20.0]
[1672879024966,112.60183821,13.342,13.332,20.0]
[1672879026540,20.0,13.343,13.332,35.98580351]
[1672879026741,20.0,13.345,13.332,35.98580351]
[1672879026952,56.24,13.344,13.332,35.98580351]
[1672879027148,20.0,13.343,13.332,35.98580351]
[1672879027597,20.0,13.344,13.332,35.98580351]
[1672879028021,20.0,13.343,13.332,35.98580351]
[1672879028205,20.0,13.344,13.332,35.98580351]
[1672879028745,20.0,13.344,13.332,15.98580351]
[1672879028963,56.24,13.343,13.332,15.98580351]
[1672879029167,56.24,13.343,13.331,114.8517]
[1672879029387,137.16967554,13.343,13.331,114.8517]
[1672879033266,20.0,13.342,13.326,56.32]
[1672879033478,20.0,13.342,13.322,174.1931]
[1672879033479,76.25,13.341,13.322,174.1931]
[1672879033679,20.0,13.34,13.323,20.0]
[1672879033892,20.0,13.338,13.323,20.0]
[1672879034110,76.27,13.337,13.323,20.0]
[1672879034634,151.20820321,13.337,13.323,35.98580351]
[1672879040510,74.93820321,13.336,13.322,117.8631]
[1672879040747,76.28,13.335,13.322,117.8631]
[1672879041070,151.21820321,13.335,13.322,117.8631]
[1672879050308,74.93820321,13.335,13.323,40.0]
[1672879050514,56.26,13.34,13.325,20.0]
[1672879050765,74.93820321,13.339,13.325,20.0]
[1672879054628,74.93820321,13.339,13.326,15.51116148]
[1672879054842,74.93820321,13.339,13.327,20.0]
[1672879055160,56.25,13.341,13.328,129.10216148]
[1672879055368,56.25,13.341,13.329,20.0]
[1672879056736,56.23,13.346,13.33,21.91116148]
[1672879057044,20.0,13.35,13.332,20.0]
[1672879057242,56.22,13.349,13.334,20.0]
[1672879057457,56.22,13.349,13.335,114.1543]
[1672879058414,56.22,13.349,13.336,20.0]
[1672879058614,20.0,13.349,13.336,20.0]
[1672879058814,56.22,13.348,13.335,228.9335]
[1672879059990,20.0,13.349,13.336,20.0]
[1672879060194,56.22,13.348,13.336,20.0]
[1672879060619,56.21,13.35,13.336,20.0]
[1672879061038,109.02006584,13.35,13.336,20.0]
[1672879064102,109.02006584,13.35,13.335,228.9335]
[1672879065801,109.02006584,13.35,13.336,20.0]
[1672879067166,109.02006584,13.35,13.335,228.9335]
[1672879070092,61.7811836,13.349,13.332,56.29]
[1672879070302,76.22,13.348,13.33,109.0785]
[1672879070497,20.0,13.347,13.331,20.0]
[1672879070703,56.23,13.346,13.331,20.0]
[1672879070914,20.0,13.345,13.331,20.0]
[1672879071136,56.24,13.344,13.331,20.0]
[1672879071345,20.0,13.343,13.331,20.0]
[1672879071968,20.0,13.343,13.331,34.89817202]
[1672879073553,20.0,13.344,13.331,34.89817202]
[1672879078058,20.0,13.344,13.331,91.19817202]
[1672879078487,20.0,13.344,13.332,20.0]
[1672879078823,20.0,13.344,13.333,14.89817202]
[1672879079002,20.0,13.344,13.334,20.0]
[1672879079215,56.21,13.35,13.334,20.0]
[1672879079540,49.29139918,13.353,13.336,20.0]
[1672879079739,76.21,13.352,13.336,20.0]
[1672879079950,56.21,13.352,13.336,20.0]
[1672879080167,56.21,13.352,13.336,34.89817202]
[1672879080369,56.21,13.352,13.337,20.0]
[1672879080786,56.21,13.352,13.337,34.89817202]
[1672879084277,49.29139918,13.353,13.339,20.0]
[1672879084467,49.29139918,13.353,13.34,169.9672]
[1672879084675,49.29139918,13.353,13.341,20.0]
[1672879085722,56.2,13.354,13.341,20.0]
[1672879085938,20.0,13.353,13.341,20.0]
[1672879086586,20.0,13.354,13.341,20.0]
[1672879093336,20.0,13.354,13.34,113.7072]
[1672879093727,20.0,13.354,13.341,20.0]
[1672879094061,20.0,13.354,13.341,34.89817202]
[1672879094463,56.19,13.355,13.342,20.0]
[1672879094684,56.18,13.359,13.343,20.0]
[1672879094904,56.18,13.359,13.344,20.0]
[1672879095521,56.18,13.359,13.346,20.0]
[1672879096990,56.17,13.361,13.346,76.23]
[1672879097214,56.16,13.362,13.347,20.0]
[1672879100586,56.16,13.362,13.347,34.89817202]
[1672879100799,56.16,13.362,13.347,91.12817202]
[1672879106794,56.16,13.362,13.347,14.89817202]
[1672879111715,56.16,13.362,13.347,34.89817202]
[1672879124972,20.0,13.36,13.345,176.0052]
[1672879125186,56.18,13.359,13.345,119.7652]
[1672879125712,56.17,13.36,13.346,20.0]
[1672879127613,77.9511836,13.36,13.346,20.0]
[1672879135187,20.0,13.359,13.342,110.6872]
[1672879135388,76.18,13.358,13.338,167.2385]
[1672879135604,20.0,13.357,13.338,110.9685]
[1672879135925,76.19,13.356,13.338,110.9685]
[1672879136134,40.0,13.355,13.338,110.9685]
[1672879136348,259.2842262,13.356,13.338,110.9685]
[1672879136349,56.2,13.354,13.34,6.35]
[1672879136548,56.19,13.357,13.341,56.25]
[1672879136764,56.19,13.357,13.342,20.0]
[1672879136974,56.19,13.357,13.342,34.90499003]
[1672879137184,56.18,13.359,13.342,34.90499003]
[1672879137386,56.18,13.359,13.344,20.0]
[1672879137597,56.18,13.359,13.345,20.0]
[1672879137818,56.18,13.359,13.346,20.0]
[1672879139489,41.7811836,13.358,13.343,110.9685]
[1672879139709,20.0,13.356,13.343,110.9685]
[1672879139907,20.0,13.354,13.343,110.9685]
[1672879140116,76.2,13.353,13.343,110.9685]
[1672879140319,97.9811836,13.353,13.338,20.0]
[1672879142755,76.2,13.353,13.338,34.90499003]
[1672879146318,76.2,13.353,13.338,20.0]
[1672879146754,21.7811836,13.352,13.338,20.0]
[1672879146967,56.21,13.351,13.338,20.0]
[1672879147367,77.9911836,13.351,13.338,20.0]
[1672879152224,56.21,13.351,13.337,115.1271]
[1672879152434,20.0,13.351,13.337,115.1271]
[1672879152632,56.21,13.35,13.337,115.1271]
[1672879153375,20.0,13.351,13.337,115.1271]
[1672879153602,56.21,13.35,13.337,115.1271]
[1672879156622,103.46614655,13.352,13.337,115.1271]
[1672879158006,103.46614655,13.352,13.338,20.0]
[1672879158634,47.25614655,13.352,13.338,20.0]
[1672879158854,20.0,13.353,13.338,20.0]
[1672879159167,20.0,13.354,13.338,20.0]
[1672879159364,56.2,13.353,13.34,20.0]
[1672879165160,56.2,13.353,13.34,26.33]
[1672879165474,176.0963,13.362,13.342,20.0]
[1672879165702,176.0963,13.362,13.343,20.0]
[1672879165883,176.0963,13.362,13.344,20.0]
[1672879166092,176.0963,13.362,13.345,20.0]
[1672879166303,234.07646248,13.362,13.346,20.0]
[1672879168097,234.07646248,13.362,13.345,139.0753]
[1672879168304,113.98182844,13.361,13.33,31.92]
[1672879168513,20.0,13.359,13.337,20.0]
[1672879168835,20.0,13.357,13.337,20.0]
[1672879169027,20.0,13.355,13.337,20.0]
[1672879169234,76.2,13.354,13.337,20.0]
[1672879169670,56.2,13.354,13.337,20.0]
[1672879169990,20.0,13.353,13.337,20.0]
[1672879170190,56.21,13.352,13.337,20.0]
[1672879181445,20.0,13.353,13.337,20.0]
[1672879181650,56.21,13.352,13.337,76.27]
[1672879181855,56.2,13.353,13.337,76.27]
[1672879182509,56.2,13.353,13.338,20.0]
[1672879184183,56.2,13.353,13.337,20.0]
[1672879193640,77.9811836,13.353,13.337,20.0]
[1672879196892,77.9811836,13.353,13.34,12.77]
[1672879197095,20.0,13.365,13.34,12.77]
[1672879197096,56.18,13.358,13.341,135.0718]
[1672879197428,20.0,13.361,13.343,20.0]
[1672879197638,56.17,13.36,13.344,20.0]
[1672879197954,56.17,13.36,13.345,20.0]
[1672879198149,56.17,13.36,13.345,34.90499003]
[1672879198785,56.17,13.36,13.346,112.7246]
[1672879199206,56.17,13.36,13.347,20.0]
[1672879203049,56.17,13.36,13.347,20.0]
[1672879205944,56.17,13.36,13.349,20.0]
[1672879206385,21.7811836,13.361,13.349,20.0]
[1672879206773,21.7811836,13.361,13.349,137.2992]
[1672879207647,56.16,13.362,13.349,137.2992]
[1672879208482,56.16,13.362,13.349,174.88412482]
[1672879208779,56.16,13.362,13.349,137.2992]
[1672879209447,77.9411836,13.362,13.349,117.2992]
[1672879215191,20.0,13.361,13.349,117.2992]
[1672879215410,56.17,13.36,13.346,112.7246]
[1672879215614,77.9511836,13.36,13.346,112.7246]
[1672879215885,41.7811836,13.359,13.346,112.7246]
[1672879216036,56.18,13.358,13.343,56.24]
[1672879216244,20.0,13.357,13.342,110.0355]
[1672879216458,41.7811836,13.357,13.343,20.0]
[1672879216656,20.0,13.355,13.343,20.0]
[1672879216949,56.19,13.356,13.343,20.0]
[1672879221193,98.43563876,13.356,13.343,20.0]
[1672879221712,120.21682236,13.356,13.343,20.0]
[1672879221923,120.21682236,13.356,13.339,20.0]
[1672879222152,20.0,13.354,13.338,20.0]
[1672879222354,20.0,13.352,13.339,20.0]
[1672879223304,101.5014027,13.353,13.339,20.0]
[1672879224670,45.3014027,13.353,13.339,20.0]
[1672879226878,45.3014027,13.353,13.34,20.0]
[1672879227090,45.3014027,13.353,13.341,20.0]
[1672879231175,45.3014027,13.353,13.343,20.0]
[1672879231396,45.3014027,13.353,13.344,20.0]
[1672879232968,56.17,13.361,13.344,20.0]
[1672879233179,47.9014027,13.357,13.344,20.0]
[1672879233381,56.19,13.356,13.344,20.0]
[1672879236664,47.9014027,13.357,13.344,20.0]
[1672879237186,56.19,13.356,13.344,20.0]
[1672879239393,56.19,13.356,13.343,40.0]
[1672879239711,20.0,13.358,13.343,40.0]
[1672879240023,56.19,13.357,13.343,40.0]
[1672879242121,21.7811836,13.356,13.343,40.0]
[1672879250028,21.7811836,13.356,13.344,20.0]
[1672879250216,21.7811836,13.356,13.346,20.0]
[1672879251261,21.7811836,13.356,13.344,20.0]
[1672879251472,21.7811836,13.356,13.345,20.0]
[1672879254225,21.7811836,13.356,13.344,20.0]
[1672879254448,21.7811836,13.356,13.343,40.0]
[1672879256627,21.7811836,13.356,13.343,20.0]
[1672879258210,56.19,13.355,13.343,20.0]
[1672879258413,112.86176387,13.355,13.343,20.0]
[1672879258620,21.7811836,13.354,13.343,20.0]
[1672879258840,20.0,13.353,13.343,20.0]
[1672879259043,76.2,13.353,13.343,20.0]
[1672879259373,21.7811836,13.352,13.343,20.0]
[1672879259661,21.7811836,13.352,13.336,56.27]
[1672879259774,76.21,13.351,13.335,223.9678]
[1672879259987,20.0,13.35,13.335,223.9678]
[1672879260200,56.22,13.349,13.335,223.9678]
[1672879260408,78.0011836,13.349,13.335,223.9678]
[1672879260612,20.0,13.347,13.335,223.9678]
[1672879260839,76.23,13.347,13.335,223.9678]
[1672879261058,21.7811836,13.346,13.335,223.9678]
[1672879263453,20.0,13.348,13.335,223.9678]
[1672879263679,20.0,13.346,13.335,223.9678]
[1672879264083,21.7811836,13.346,13.335,223.9678]
[1672879264517,78.45294747,13.346,13.335,223.9678]
[1672879264740,131.31906909,13.346,13.335,223.9678]
[1672879267248,131.31906909,13.346,13.335,108.1223]
[1672879270321,131.31906909,13.346,13.331,113.1925]
[1672879270541,131.31906909,13.346,13.332,40.0]
[1672879272114,131.31906909,13.346,13.332,20.0]
[1672879272417,104.19909137,13.345,13.328,111.1119]
[1672879272632,20.0,13.344,13.328,111.1119]
[1672879272845,20.0,13.342,13.328,111.1119]
[1672879273034,56.25,13.341,13.328,111.1119]
[1672879273256,20.0,13.34,13.328,111.1119]
[1672879273451,20.0,13.338,13.328,111.1119]
[1672879273691,125.9425863,13.339,13.328,111.1119]
[1672879273875,192.4076835,13.339,13.328,111.1119]
[1672879274097,21.7811836,13.338,13.328,111.1119]
[1672879274851,139.77219241,13.339,13.329,20.0]
[1672879275453,47.9014027,13.339,13.329,20.0]
[1672879276403,47.9014027,13.339,13.328,111.1119]
[1672879278623,56.25,13.342,13.328,111.1119]
[1672879279237,104.1514027,13.342,13.328,111.1119]
[1672879281367,125.9325863,13.342,13.328,111.1119]
[1672879283570,20.0,13.341,13.326,56.32]
[1672879283778,20.0,13.341,13.325,108.7611]
[1672879283779,20.0,13.339,13.325,108.7611]
[1672879283971,56.27,13.338,13.325,108.7611]
[1672879284179,20.0,13.337,13.325,108.7611]
[1672879284385,21.7811836,13.337,13.325,108.7611]
[1672879285460,21.7811836,13.337,13.326,20.0]
[1672879285661,21.7811836,13.337,13.326,76.32]
[1672879287334,21.7811836,13.337,13.326,20.0]
[1672879287604,21.7811836,13.337,13.326,76.32]
[1672879290705,21.7811836,13.337,13.326,56.32]
[1672879290926,21.7811836,13.337,13.325,108.7611]
[1672879291569,21.7811836,13.337,13.326,20.0]
[1672879292077,21.7811836,13.337,13.326,76.32]
[1672879292513,21.7811836,13.337,13.326,20.0]
[1672879294925,21.7811836,13.337,13.325,165.0811]
[1672879295138,21.7811836,13.337,13.325,108.7611]
[1672879295346,78.0511836,13.337,13.325,108.7611]
[1672879295666,21.7811836,13.336,13.325,108.7611]
[1672879295868,20.0,13.335,13.325,108.7611]
[1672879296066,21.7811836,13.336,13.325,108.7611]
[1672879310601,89.89846717,13.336,13.325,108.7611]
[1672879310925,21.7811836,13.335,13.325,108.7611]
[1672879311164,20.0,13.334,13.325,108.7611]
[1672879311448,20.0,13.334,13.322,56.33]
[1672879311449,41.7811836,13.334,13.322,56.33]
[1672879311661,89.89846717,13.334,13.323,40.0]
[1672879312394,89.89846717,13.334,13.323,20.0]
[1672879318268,20.0,13.333,13.322,108.9553]
[1672879318505,20.0,13.333,13.321,110.4443]
[1672879318506,56.29,13.332,13.321,110.4443]
[1672879318706,0.06985161,13.322,13.321,110.4443]
[1672879319967,0.06985161,13.322,13.315,115.24]
[1672879320163,0.06985161,13.322,13.309,56.39]
[1672879320376,118.23729821,13.322,13.308,199.7827601]
[1672879320613,118.23729821,13.322,13.308,256.1727601]
[1672879321217,56.34,13.321,13.308,199.7827601]
[1672879321648,20.0,13.319,13.308,199.7827601]
[1672879322281,21.7811836,13.318,13.308,199.7827601]
[1672879322692,128.18134663,13.318,13.308,199.7827601]
[1672879322904,20.0,13.317,13.308,199.7827601]
[1672879323113,41.7811836,13.317,13.308,199.7827601]
[1672879323335,21.7811836,13.316,13.309,20.0]
[1672879323546,0.06985161,13.322,13.309,76.39]
[1672879323753,20.06985161,13.322,13.309,56.39]
[1672879323961,41.85103521,13.322,13.309,56.39]
[1672879324371,41.85103521,13.322,13.308,199.9209601]
[1672879324584,56.34,13.321,13.308,199.9209601]
[1672879325012,20.0,13.319,13.308,199.9209601]
[1672879325220,76.35,13.319,13.308,199.9209601]
[1672879325435,21.7811836,13.318,13.308,199.9209601]
[1672879326579,78.1311836,13.318,13.308,199.9209601]
[1672879326788,21.7811836,13.318,13.308,199.9209601]
[1672879331441,56.39985161,13.322,13.308,199.9209601]
[1672879331754,0.06985161,13.322,13.309,20.0]
[1672879331960,21.7811836,13.321,13.309,20.0]
[1672879332297,21.7811836,13.321,13.309,76.39]
[1672879332599,21.7811836,13.321,13.309,56.39]
[1672879332779,21.7811836,13.321,13.308,256.3109601]
[1672879332994,21.7811836,13.321,13.308,199.9209601]
[1672879335122,21.7811836,13.321,13.308,256.3109601]
[1672879336195,21.7811836,13.321,13.308,199.9209601]
[1672879337229,20.0,13.319,13.308,199.9209601]
[1672879337645,21.7811836,13.318,13.308,199.9209601]
[1672879337861,20.0,13.317,13.308,84.1732601]
[1672879338053,76.35,13.317,13.308,84.1732601]
[1672879338266,20.0,13.315,13.308,84.1732601]
[1672879338688,21.7811836,13.314,13.308,84.1732601]
[1672879339752,20.0,13.312,13.308,84.1732601]
[1672879339958,56.38,13.311,13.308,84.1732601]
[1672879340161,21.7811836,13.311,13.308,84.1732601]
[1672879340377,56.38,13.312,13.308,84.1732601]
[1672879340695,20.0,13.313,13.308,84.1732601]
[1672879340893,20.0,13.316,13.308,84.1732601]
[1672879341113,41.7811836,13.316,13.308,84.1732601]
[1672879341309,20.0,13.321,13.308,84.1732601]
[1672879341530,21.7811836,13.32,13.308,84.1732601]
[1672879341742,21.7811836,13.32,13.309,113.6763]
[1672879341948,56.35,13.319,13.309,113.6763]
[1672879342170,20.0,13.318,13.309,113.6763]
[1672879342379,41.7811836,13.318,13.309,113.6763]
[1672879343641,21.7811836,13.318,13.309,113.6763]
[1672879343856,21.7811836,13.317,13.308,84.1732601]
[1672879344045,96.36,13.316,13.308,84.1732601]
[1672879344373,21.7811836,13.315,13.308,84.1732601]
[1672879344569,20.0,13.313,13.308,84.1732601]